fUSD/lending_fUSD_20250806
["ID","MTS","AMOUNT","RATE_DAILY","PERIOD"]
[377695930,1754494246037,-1000.0,0.00038219,30]
[377695931,1754494246051,-1000.0,0.00038219,30]
[377695932,1754494246064,-1000.0,0.00038219,30]
[377695933,1754494246076,-1000.0,0.00038219,30]
[377695934,1754494246088,-1000.0,0.00038219,30]
[377695935,1754494246100,-217.37556626,0.00038219,30]
[377695936,1754494246112,-391.24674817,0.00038228,2]
[377695937,1754494246124,-152.0,0.00038236,4]
[377695938,1754494246137,-563.9,0.00038255,5]
[377695939,1754494246148,-175.45787696,0.00038256,2]
[377695940,1754494246160,-4849.87642255,0.00038263,4]
[377695941,1754494246172,-1888.88050166,0.00038266,2]
[377695942,1754494246183,-391.24674817,0.00038266,2]
[377695944,1754494246194,-500.0,0.00038273,5]
[377695947,1754494246206,-500.0,0.00038273,5]
[377695950,1754494246218,-500.0,0.00038273,5]
[377695953,1754494246229,-500.0,0.00038273,5]
[377695956,1754494246240,-500.0,0.00038273,5]
[377695958,1754494246251,-500.0,0.00038273,5]
[377695961,1754494246263,-500.0,0.00038273,5]
[377695964,1754494246274,-500.0,0.00038273,5]
[377695966,1754494246286,-150.0,0.00038274,7]
[377695968,1754494246297,-268.14231184,0.00038277,2]
[377695970,1754494246308,-101847.404874,0.0003828,4]
[377695973,1754494246320,-1000.0,0.00038289,15]
[377695975,1754494246332,-63801.72331285,0.00038289,4]
[377695976,1754494246347,-617.57508871,0.00038289,4]
[377695977,1754494246380,-1121.575004,0.00038289,4]
[377695978,1754494246394,-31456.65504544,0.00038289,4]
[377695979,1754494246406,-151.13,0.0003829,2]
[377695980,1754494246417,-151.13,0.0003829,2]
[377695981,1754494246431,-151.13,0.0003829,2]
[377695982,1754494246443,-151.13,0.0003829,2]
[377695983,1754494246454,-151.0,0.00038298,15]
[377695984,1754494246465,-151.0,0.00038298,15]
[377695985,1754494246478,-151.0,0.00038298,15]
[377695986,1754494246489,-151.0,0.00038298,15]
[377695987,1754494246500,-376.23677699,0.00038298,15]
[377695988,1754494246512,-191.2,0.00038299,2]
[377695989,1754494246523,-1000.0,0.00038299,15]
[377695990,1754494246535,-1000.0,0.00038299,15]
[377695991,1754494246547,-1000.0,0.00038299,15]
[377695992,1754494246559,-1000.0,0.00038299,15]
[377695993,1754494246571,-1000.0,0.00038299,15]
[377695994,1754494246582,-1000.0,0.00038299,15]
[377695995,1754494246594,-1000.0,0.00038299,15]
[377695996,1754494246605,-1000.0,0.00038299,15]
[377695997,1754494246616,-1000.0,0.00038299,15]
[377695998,1754494246628,-1000.0,0.00038299,15]
[377695999,1754494246639,-3533.25028605,0.000383,2]
[377696000,1754494246654,-498.04987622,0.000383,2]
[377696001,1754494246668,-321594.07708381,0.000383,2]
[377696002,1754494246679,-19571.84624903,0.000383,2]
[377696003,1754494246691,-19692.59101021,0.000383,2]
[377696004,1754494246783,-1272.71521001,0.00038199,3]
[377697724,1754494802627,1000.0,0.0002739,120]
[377697727,1754495042173,300.0,0.0002739,120]
[377697762,1754495241657,158.03,0.00013699,2]
[377697782,1754495431756,-205.52912045,0.000249,2]
[377697783,1754495431767,-158.37,0.00030928,2]
[377697784,1754495431779,-158.37,0.00032983,2]
[377697785,1754495431789,-244.71880501,0.00033607,16]
[377697786,1754495431800,-391.323968,0.00034497,2]
[377697787,1754495431812,-150.0,0.00034742,4]
[377697788,1754495431822,-150.0,0.00034742,4]
[377697789,1754495431836,-158.37,0.00035037,2]
[377697790,1754495431849,-150.0,0.00035515,7]
[377697791,1754495431858,-1000.0,0.000361,2]
[377697792,1754495431868,-158.96,0.00036106,30]
[377697793,1754495431879,-415.52,0.0003614,2]
[377697794,1754495431889,-285.49,0.00036166,2]
[377697795,1754495431900,-155.87,0.00036196,120]
[377697796,1754495431911,-232.63,0.000362,2]
[377697797,1754495431921,-151.0,0.00036218,7]
[377697798,1754495431931,-150.0,0.00036287,7]
[377697799,1754495431942,-183.84810654,0.000364,2]
[377697800,1754495432308,-549.77001265,0.00033668,3]
[377697801,1754495432321,-1754.53714967,0.00033668,3]
[377697802,1754495432506,-967.46710768,0.00031428,3]
[377697803,1754495432518,-920.53289232,0.00031428,3]
[377697804,1754495432528,-1471.69283768,0.00033668,3]
[377697805,1754495432539,-1816.15189346,0.000364,2]
[377697806,1754495432549,-150.0,0.00037059,7]
[377697807,1754495432559,-158.37,0.00037092,2]
[377697808,1754495432568,-602.57,0.00037212,2]
[377697809,1754495432578,-216.40168051,0.00037212,7]
[377697810,1754495432588,-166.00202425,0.00037212,47]
[377697811,1754495432599,-500.0,0.00037259,7]
[377697812,1754495432609,-211.52696026,0.00037308,2]
[377697813,1754495432619,-340.0,0.00037484,2]
[377697814,1754495432629,-181.94,0.00037484,2]
[377697815,1754495432639,-200.0,0.000375,13]
[377697816,1754495432649,-809.0,0.00037505,2]
[377697817,1754495432659,-3362.0,0.00037505,2]
[377697818,1754495432668,-500.0,0.000376,13]
[377697819,1754495432679,-800.0,0.000377,13]
[377697820,1754495432689,-1100.0,0.000378,13]
[377697821,1754495432699,-150.0,0.00037831,7]
[377697822,1754495432709,-1300.0,0.000379,13]
[377697823,1754495432719,-1634.46,0.000379,15]
[377697824,1754495432729,-415.52,0.00037947,2]
[377697825,1754495432738,-1268.011,0.00038,2]
[377697827,1754495432748,-250.0,0.00038,7]
[377697829,1754495432758,-541.62,0.00038,2]
[377697831,1754495432768,-1000.0,0.00038,2]
[377697833,1754495432777,-207.44754509,0.00038,2]
[377697835,1754495432787,-216.33065177,0.00038016,17]
[377697836,1754495432798,-200.0,0.00038049,10]
[377697837,1754495432808,-1634.44,0.00038056,16]
[377697838,1754495432818,-207.44754502,0.00038059,2]
[377697839,1754495432829,-817.22,0.0003809,16]
[377697840,1754495432839,-165.88294431,0.00038095,15]
[377697841,1754495432851,-187.37496035,0.00038099,2]
[377697842,1754495432861,-273.8727238,0.00038099,2]
[377697843,1754495432871,-6239.03981417,0.000381,2]
[377697849,1754495432929,-364.13460808,0.000381,2]
[377697859,1754495437703,-748.26893567,0.000381,2]
[377697860,1754495437851,-291.04891274,0.000381,2]
[377697861,1754495438022,-4276.8926,0.000381,2]
[377697862,1754495438033,-3082.5,0.000381,2]
[377697863,1754495438044,-1018.8509,0.000381,2]
[377697864,1754495438055,-1143.842725,0.000381,2]
[377697865,1754495438066,-3370.39852,0.000381,2]
[377697981,1754495439843,-3799.0,0.000381,2]
[377697983,1754495439856,-1641.432771,0.000381,2]
[377697985,1754495439868,-2143.38779258,0.000381,2]
[377697987,1754495439880,-592.76897864,0.000381,2]
[377697990,1754495439891,-3476.29568228,0.000381,2]
[377698005,1754495440035,-48616.63614296,0.000381,2]
[377698025,1754495440214,-1888.0,0.00038099,3]
[377698027,1754495440224,-5434.81369448,0.000381,2]
[377698029,1754495440235,-2753.18419228,0.000381,2]
[377698281,1754495442744,-99825.64423012,0.000381,2]
[377698283,1754495442754,-5000.0,0.000381,2]
[377698285,1754495442764,-164.85215367,0.000381,2]
[377698287,1754495442774,-609.91,0.00038116,30]
[377698289,1754495442783,-207.44754502,0.00038118,2]
[377698291,1754495442794,-273.87272371,0.00038147,2]
[377698293,1754495442804,-500.0,0.00038173,5]
[377698295,1754495442814,-170.17268896,0.00038173,5]
[377698297,1754495442824,-500.0,0.00038173,5]
[377698299,1754495442835,-500.0,0.00038173,5]
[377698301,1754495442844,-500.0,0.00038173,5]
[377698303,1754495442855,-500.0,0.00038173,5]
[377698305,1754495442864,-500.0,0.00038173,5]
[377698307,1754495442874,-500.0,0.00038173,5]
[377698309,1754495442883,-207.44754502,0.00038177,2]
[377698311,1754495442893,-598.47,0.00038181,30]
[377698313,1754495442903,-589.45,0.00038183,30]
[377698315,1754495442913,-151.15,0.0003819,2]
[377698317,1754495442923,-151.15,0.0003819,2]
[377698319,1754495442933,-151.15,0.0003819,2]
[377698321,1754495442942,-273.87272371,0.00038195,2]
[377698323,1754495442951,-336.20784249,0.00038199,15]
[377698325,1754495442961,-615.28478999,0.00038199,3]
[377698327,1754495442971,-1000.0,0.000382,2]
[377698329,1754495442980,-53659.24061829,0.000382,2]
[377698336,1754495443034,-109153.44800475,0.000382,2]
[377698338,1754495443044,-10205.80612447,0.000382,2]
[377698340,1754495443054,-643679.77762705,0.000382,2]
[377698343,1754495443064,-169156.10332079,0.000382,2]
[377698626,1754495446356,-1888.0,0.00038099,3]
[377698629,1754495446372,-24276.8250506,0.000382,2]
[377698631,1754495446384,-1031.35224207,0.000382,2]
[377698633,1754495446395,-2496.87218312,0.000382,2]
[377698748,1754495447507,45553.81991325,0.0002,20]
[377698752,1754495447532,5500.0,0.0002,20]
[377699141,1754496134927,-1000.0,0.00019954,4]
[377699142,1754496134955,-49000.0,0.0002,20]
[377699144,1754496144145,-5620.74008675,0.0002,20]
[377699150,1754496232580,156.97,0.00013699,2]
[377699193,1754496631880,-164.176799,0.00019907,2]
[377699194,1754496631890,-1032.53289232,0.00020008,2]
[377699195,1754496632000,-616.93065259,0.00020008,2]
[377699196,1754496632012,-687.44719594,0.00020008,2]
[377699197,1754496632123,-2663.08925915,0.00020008,2]
[377699198,1754496632132,-258.69,0.00020098,2]
[377699199,1754496632142,-2570.37,0.00020238,2]
[377699200,1754496632152,-5000.0,0.00020245,2]
[377699201,1754496632161,-166.89,0.0002025,2]
[377699202,1754496632171,-5000.0,0.00020441,2]
[377699203,1754496632181,-5000.0,0.00020502,2]
[377699204,1754496632191,-2933.94,0.00020658,2]
[377699205,1754496632201,-150.0,0.00020797,2]
[377699206,1754496632211,-5000.0,0.00020847,2]
[377699207,1754496632220,-325.48,0.00020961,2]
[377699208,1754496632230,-153.16,0.00021219,2]
[377699209,1754496632240,-4891.31,0.00021571,2]
[377699210,1754496632250,-1932.07,0.00021627,2]
[377699211,1754496632259,-1000.0,0.00021898,4]
[377699212,1754496632269,-248.52279025,0.000246,2]
[377699213,1754496632279,-155.94,0.0002839,2]
[377699215,1754496632289,-1000.0,0.0003,4]
[377699217,1754496632298,-500.0,0.00030356,2]
[377699219,1754496632307,-155.94,0.00030445,2]
[377699221,1754496632317,-1000.0,0.00031497,2]
[377699223,1754496632327,-500.0,0.0003217,2]
[377699225,1754496632336,-500.0,0.0003217,2]
[377699227,1754496632345,-500.0,0.0003217,2]
[377699229,1754496632355,-500.0,0.0003217,2]
[377699230,1754496632364,-545.76809848,0.0003217,2]
[377699232,1754496632374,-155.94,0.000325,2]
[377699234,1754496632384,-233.0,0.00033317,2]
[377699237,1754496632394,-158.96,0.00033353,30]
[377699239,1754496632403,-883.21,0.00033427,2]
[377699241,1754496632413,-3013.71173159,0.0003377,2]
[377699243,1754496632424,-1000.0,0.00033835,2]
[377699245,1754496632433,-177.52,0.00033869,2]
[377699248,1754496632443,-355.4,0.00033909,2]
[377699251,1754496632452,-1000.0,0.00034305,2]
[377699254,1754496632462,-150.0,0.0003452,2]
[377699257,1754496632471,-155.94,0.00034554,2]
[377699260,1754496632480,-150.0,0.00034595,7]
[377699262,1754496632490,-150.0,0.00034595,7]
[377699264,1754496632500,-150.0,0.00034595,7]
[377699266,1754496632512,-150.0,0.00034595,7]
[377699268,1754496632522,-252.24775132,0.00034595,7]
[377699270,1754496632532,-812.77870376,0.00034722,2]
[377699272,1754496632541,-170.04,0.00034889,2]
[377699274,1754496632550,-953.25897354,0.00034923,2]
[377699276,1754496632560,-150.999999,0.00035,2]
[377699278,1754496632569,-636.0,0.00035123,2]
[377699280,1754496632578,-1093.73924333,0.00035124,2]
[377699282,1754496632588,-1234.21951312,0.00035326,2]
[377699284,1754496632597,-457.43778519,0.00035422,2]
[377699286,1754496632606,-1374.6997829,0.00035527,2]
[377699288,1754496632616,-514.0,0.00035549,2]
[377699290,1754496632626,-355.4,0.00035605,2]
[377699292,1754496632636,-1515.18005269,0.00035728,2]
[377699294,1754496632646,-6073.0,0.00035784,2]
[377699296,1754496632655,-1894.24,0.00035784,2]
[377699298,1754496632665,-1655.66032247,0.0003593,2]
[377699300,1754496632675,-1796.14059226,0.00036131,2]
[377699302,1754496632686,-500.29989425,0.00036332,2]
[377699305,1754496632698,-507.59145746,0.00036332,2]
[377699605,1754496637749,-1888.0,0.0002889,3]
[377699606,1754496637759,-3776.0,0.0003113,3]
[377699607,1754496638152,-928.72951033,0.00036332,2]
[377699608,1754496638190,-177.52,0.0003641,2]
[377699610,1754496638200,-2077.10113183,0.00036534,2]
[377699612,1754496638210,-155.94,0.00036609,2]
[377699614,1754496638220,-211.52696026,0.00036693,2]
[377699616,1754496638231,-2000.0,0.000367,2]
[377699618,1754496638241,-2217.58140161,0.00036735,2]
[377699620,1754496638250,-2358.0616714,0.00036936,2]
[377699622,1754496638260,-2498.54194118,0.00037138,2]
[377699624,1754496638270,-355.4,0.000373,2]
[377699626,1754496638279,-2639.02221097,0.00037339,2]
[377699627,1754496638288,-236.0,0.00037396,2]
[377699629,1754496638298,-252.34,0.00037505,2]
[377699631,1754496638308,-1269.0,0.00037505,2]
[377699635,1754496638318,-911.0,0.00037505,2]
[377699638,1754496638329,-955.0,0.00037505,2]
[377699642,1754496638339,-3362.0,0.00037505,2]
[377699644,1754496638349,-597.0,0.00037505,2]
[377699646,1754496638359,-718.0,0.00037505,2]
[377699649,1754496638368,-1411.0,0.00037505,2]
[377699652,1754496638378,-564.0,0.00037505,2]
[377699655,1754496638388,-2779.50248075,0.00037541,2]
[377699658,1754496638399,-150.0,0.00037673,120]
[377699661,1754496638408,-2919.98275054,0.00037742,2]
[377699663,1754496638418,-3060.46302033,0.00037943,2]
[377699665,1754496638429,-1000.0,0.00038,120]
[377699667,1754496638438,-1324.44456958,0.00038,120]
[377699672,1754496638482,-1012.08,0.00038,120]
[377699674,1754496638494,-2168.1462676,0.00038,120]
[377699677,1754496638506,-495.16103179,0.00038,120]
[377699681,1754496638537,-1888.0,0.0002939,3]
[377699683,1754496638547,-3776.0,0.0003163,3]
[377699685,1754496638557,-11721.28367993,0.00038,120]
[377699887,1754496640518,-479.8844511,0.00038,120]
[377699889,1754496640528,-157.24500458,0.00038,2]
[377699891,1754496640537,-15.18146217,0.0003803,16]
[377699894,1754496640560,-218.31853783,0.0003803,16]
[377699896,1754496640570,-200.0,0.00038049,10]
[377699898,1754496640579,-466.98,0.0003806,16]
[377699900,1754496640589,-821.50061239,0.00038064,44]
[377699902,1754496640598,-1000.0,0.00038064,2]
[377699904,1754496640608,-2500.0,0.0003809,2]
[377699906,1754496640618,-1086.13194882,0.00038098,30]
[377699909,1754496640632,-93.87805118,0.00038098,30]
[377699911,1754496640642,-1041.6,0.00038098,30]
[377699913,1754496640652,-1180.01,0.00038098,30]
[377699915,1754496640661,-1180.01,0.00038098,30]
[377699917,1754496640671,-1180.01,0.00038098,30]
[377699919,1754496640681,-1180.01,0.00038098,30]
[377699921,1754496640690,-211.22122159,0.00038098,30]
[377699929,1754496640764,-1230.20877841,0.00038098,30]
[377699931,1754496640775,-1180.01,0.00038098,30]
[377699933,1754496640784,-597.31,0.00038099,30]
[377699935,1754496640794,-593.39,0.00038099,30]
[377699937,1754496640804,-601.89479797,0.00038099,2]
[377699939,1754496640815,-13106.14725317,0.000381,2]
[377699941,1754496640827,-1590.46323665,0.000381,2]
[377699943,1754496640839,-576.85,0.000381,2]
[377699945,1754496640851,-875.34985971,0.000381,2]
[377700095,1754496644763,-3372.11355894,0.000381,2]
[377700096,1754496644774,-2944.34579153,0.000381,2]
[377700097,1754496644784,-1193.88829847,0.000381,2]
[377700098,1754496644918,-0.63797268,0.000381,2]
[377700099,1754496644931,-960.94665344,0.000381,2]
[377700100,1754496644983,-641.52566858,0.000381,2]
[377700141,1754496645950,-2203.00140683,0.000381,2]
[377700142,1754496645959,-164.85215366,0.000381,2]
[377700143,1754496645968,-161.22439262,0.000381,15]
[377700144,1754496645979,-817.71147889,0.00038145,2]
[377700145,1754496646242,-347.42116979,0.00038099,3]
[377700146,1754496646254,-1487.91139739,0.00038099,3]
[377700147,1754496646267,-52.66743282,0.00038099,3]
[377700148,1754496646277,-698.54636424,0.00038145,2]
[377700149,1754496646369,-1684.68544698,0.00038145,2]
[377700151,1754496646379,-152.40795302,0.00038147,2]
[377700152,1754496646391,-449.48684487,0.00038147,2]
[377700153,1754496646400,-304.98316853,0.00038163,15]
[377700154,1754496646410,-239.8299864,0.00038163,15]
[377700189,1754497015454,155.87,0.00026855,120]
[377700197,1754497216963,500.0,0.00030137,120]
[377700198,1754497222371,534.47662,0.00023,30]
[377700199,1754497222615,534.47662,0.00023,30]
[377700200,1754497223129,534.47662,0.00023,30]
[377700201,1754497223349,534.47662,0.00023,30]
[377700202,1754497223666,534.47664,0.00023,30]
[377700203,1754497234621,502.5,0.00030137,120]
[377700209,1754497294127,154.95,0.00013699,2]
[377700236,1754497547404,794.67745756,0.0001995,15]
[377700239,1754497555521,800.34609608,0.00015,10]
[377700245,1754497675287,8300.0,0.0002,4]
[377700247,1754497681032,14688.08,0.00019,2]
[377700248,1754497681057,15000.0,0.00019,2]
[377700249,1754497681089,15000.0,0.00019,2]
[377700250,1754497681117,15000.0,0.00019,2]
[377700251,1754497681161,7053.62358471,0.00019,2]
[377700252,1754497683990,1000.0,0.00019956,4]
[377700253,1754497714543,521.91974607,0.0002,7]
[377700256,1754497721104,524.81636484,0.0001421,7]
[377700305,1754497832670,-160.39948461,0.00019948,2]
[377700310,1754497832681,-250.0,0.00019956,2]
[377700314,1754497832691,-1000.0,0.00020038,4]
[377700317,1754497832700,-1200.0,0.00020048,2]
[377700318,1754497832710,-300.0,0.00020048,2]
[377700321,1754497832720,-63566.93625519,0.00020049,2]
[377700323,1754497832791,-40077.14110597,0.00020049,2]
[377700324,1754497832827,-18991.82263884,0.00020049,2]
[377700325,1754497832838,-244.10878119,0.00020077,2]
[377700326,1754497832893,-506.33121881,0.00020077,2]
[377700327,1754497832903,-493.66878119,0.00020093,5]
[377700329,1754497837881,-571.43,0.00019938,2]
[377700330,1754497838067,-1392.82501524,0.00019938,2]
[377700331,1754497838080,-495.17498476,0.00020048,2]
[377700534,1754497840255,-74.34614944,0.00020048,2]
[377700536,1754497840266,-958.07121881,0.00020093,5]
[377700538,1754497840278,-122.33263175,0.00020094,2]
[377700540,1754497840292,-77.62026086,0.00020094,2]
[377700542,1754497840305,-310.1597391,0.00020094,2]
[377701040,1754497846089,-7160.6002609,0.00020094,2]
[377701042,1754497846099,-500.0,0.000201,2]
[377701043,1754497846110,-188.7,0.00020102,2]
[377701044,1754497846120,-478.93,0.00020111,2]
[377701045,1754497846130,-500.0,0.00020165,2]
[377701046,1754497846140,-165.62,0.0002029,2]
[377701047,1754497846152,-24795.14,0.00020344,2]
[377701048,1754497846161,-150.0,0.00020352,2]
[377701049,1754497846171,-301.74275118,0.0002044,2]
[377701050,1754497846183,-23314.26698791,0.00020454,2]
[377701051,1754497846209,-585.73301209,0.00020454,2]
[377701052,1754497846220,-150.0,0.00020521,2]
[377701053,1754497846230,-1296.48,0.00020541,2]
[377701054,1754497846239,-663.93,0.0002059,2]
[377701055,1754497846250,-1000.0,0.00020616,2]
[377701056,1754497846259,-168.72,0.00020651,2]
[377701057,1754497846268,-951.7,0.00020702,2]
[377701058,1754497846280,-150.0,0.00020908,2]
[377701059,1754497846289,-150.0,0.00020919,2]
[377701060,1754497846299,-5000.0,0.00021063,2]
[377701061,1754497846309,-183.51,0.00021084,2]
[377701062,1754497846319,-500.0,0.00021156,2]
[377701063,1754497846328,-213.48821797,0.00021156,2]
[377701064,1754497846338,-163.85732522,0.00021156,2]
[377701065,1754497846348,-539.55239319,0.00021156,2]
[377701066,1754497846357,-1103.86659986,0.00021157,2]
[377701100,1754498004111,325.85,0.0001764,2]
[377701106,1754498205894,155.51,0.00013699,2]
[377701110,1754498545956,-176.51,0.00019178,2]
[377701111,1754498545979,-325.85,0.0001937,2]
[377701112,1754498546002,-643.97025293,0.00020015,2]
[377701113,1754498546023,-245.47,0.00020111,2]
[377701114,1754498546045,-1000.0,0.00020445,2]
[377701115,1754498546066,-403.72,0.00020445,2]
[377701116,1754498546088,-1730.38,0.00020457,2]
[377701117,1754498546109,-150.0,0.00020548,2]
[377701118,1754498546129,-150.0,0.00020737,2]
[377701119,1754498546151,-754.09974707,0.00021034,2]
[377701128,1754498787182,14858.0,0.00018,2]
[377701160,1754499032081,293.26,0.00015068,2]
[377701161,1754499032100,-1168.02686497,0.00020428,2]
[377701162,1754499032119,-234.62313503,0.00020428,2]
[377701163,1754499032129,-985.0,0.00020441,2]
[377701164,1754499032140,-155.87,0.00020451,2]
[377701165,1754499032149,-428.62,0.00020506,2]
[377701166,1754499032159,-1346.38,0.00020555,2]
[377701167,1754499032168,-957.0,0.00021033,2]
[377701168,1754499032178,-300.0,0.00021034,2]
[377701169,1754499032188,-300.0,0.00021034,2]
[377701170,1754499032198,-10324.75440064,0.00021035,2]
[377701171,1754499032208,-245.47,0.00021116,2]
[377701172,1754499032219,-6307.3710429,0.00021156,2]
[377701173,1754499032228,-550.5073017,0.00021156,2]
[377701174,1754499032238,-209.58533584,0.00021157,2]
[377701175,1754499032248,-403.90380859,0.00021157,2]
[377701176,1754499032258,-750.78,0.00021185,2]
[377701177,1754499032267,-3896.11,0.00021191,2]
[377701178,1754499032277,-5000.0,0.00021201,2]
[377701179,1754499032287,-1571.83,0.00021204,2]
[377701180,1754499032296,-403.72,0.00021212,2]
[377701181,1754499032306,-25000.0,0.00021252,2]
[377701182,1754499032315,-1887.2,0.00021257,2]
[377701183,1754499032325,-5000.0,0.00021281,2]
[377701184,1754499032335,-29282.50408682,0.00021335,2]
[377701185,1754499032434,-8884.62696436,0.00021335,2]
[377701186,1754499032444,-8021.07664,0.00021354,2]
[377701187,1754499032488,-1217.90063364,0.00021354,2]
[377701188,1754499032512,-333.74091558,0.00021354,2]
[377701189,1754499032524,-836.32500144,0.00021354,2]
[377701190,1754499032535,-14590.95680934,0.00021354,2]
[377701191,1754499032545,-5216.08,0.0002137,2]
[377701193,1754499032554,-500.0,0.00021373,2]
[377701195,1754499032564,-500.0,0.00021373,2]
[377701197,1754499032574,-500.0,0.000214,2]
[377701199,1754499032583,-7286.206127,0.00021467,2]
[377701201,1754499032592,-5000.0,0.00021469,2]
[377701204,1754499032603,-3452.68,0.00021507,2]
[377701207,1754499032614,-14172.93205233,0.00021526,2]
[377701209,1754499032623,-5000.0,0.00021567,2]
[377701211,1754499032633,-9608.67,0.00021597,2]
[377701215,1754499032643,-2474.33,0.00021639,2]
[377701217,1754499032653,-500.76720022,0.0002165,2]
[377701218,1754499032663,-511.56736445,0.0002165,2]
[377701219,1754499032672,-500.0,0.0002165,2]
[377701220,1754499032682,-6043.93458623,0.00021668,2]
[377701222,1754499032691,-5000.0,0.00021685,2]
[377701224,1754499032700,-500.0,0.0002172,2]
[377701226,1754499032710,-227.68667523,0.0002172,2]
[377701227,1754499032719,-2360.0,0.00021721,2]
[377701228,1754499032729,-5000.0,0.00021774,2]
[377701229,1754499032739,-210.37,0.00021802,2]
[377701230,1754499032750,-5000.0,0.00021805,2]
[377701231,1754499032760,-5000.0,0.00021842,2]
[377701232,1754499032769,-2390.87,0.00021842,2]
[377701233,1754499032779,-324.78,0.00021849,2]
[377701234,1754499032788,-5000.0,0.00021851,2]
[377701235,1754499032799,-2630.78,0.00021862,2]
[377701236,1754499032809,-5000.0,0.00021867,2]
[377701237,1754499032818,-25000.0,0.00021896,2]
[377701238,1754499032828,-5000.0,0.00021913,2]
[377701239,1754499032838,-1000.0,0.00021921,2]
[377701240,1754499032847,-1000.0,0.00021921,2]
[377701241,1754499032857,-621.0,0.00021978,2]
[377701242,1754499032868,-150.0,0.00021978,2]
[377701243,1754499032879,-500.0,0.00021978,2]
[377701244,1754499032889,-500.0,0.00021978,2]
[377701245,1754499032899,-150.0,0.00021978,2]
[377701246,1754499032908,-150.0,0.00021978,2]
[377701247,1754499032919,-150.0,0.00021978,2]
[377701248,1754499032929,-417.0,0.00021978,2]
[377701249,1754499032939,-953.0,0.00021978,2]
[377701250,1754499032949,-403.72,0.00021978,2]
[377701251,1754499032959,-245.47,0.00022122,2]
[377701252,1754499032968,-621.0,0.00022252,2]
[377701253,1754499032978,-500.0,0.00022252,2]
[377701254,1754499032987,-500.0,0.00022252,2]
[377701255,1754499032996,-150.0,0.00022252,2]
[377701256,1754499033007,-417.0,0.00022252,2]
[377701257,1754499033016,-953.0,0.00022252,2]
[377701258,1754499033025,-198.85726275,0.00022468,2]
[377701259,1754499033034,-250.0,0.00022485,2]
[377701260,1754499033044,-621.0,0.00022526,2]
[377701261,1754499033053,-500.0,0.00022526,2]
[377701262,1754499033062,-500.0,0.00022526,2]
[377701263,1754499033073,-251.4508455,0.00022526,2]
[377701264,1754499033082,-417.0,0.00022526,2]
[377701265,1754499033092,-953.0,0.00022526,2]
[377701266,1754499033102,-403.72,0.00022745,2]
[377701267,1754499033112,-621.0,0.000228,2]
[377701268,1754499033122,-500.0,0.000228,2]
[377701269,1754499033132,-500.0,0.000228,2]
[377701270,1754499033142,-417.0,0.000228,2]
[377701271,1754499033152,-953.0,0.000228,2]
[377701272,1754499033164,-420.0,0.0002288,2]
[377701273,1754499033174,-1000.0,0.00023001,2]
[377701274,1754499033184,-621.0,0.00023074,2]
[377701275,1754499033194,-500.0,0.00023074,2]
[377701276,1754499033203,-500.0,0.00023074,2]
[377701277,1754499033213,-417.0,0.00023074,2]
[377701278,1754499033223,-953.0,0.00023074,2]
[377701279,1754499033233,-245.47,0.00023127,2]
[377701280,1754499033242,-210.37,0.00023172,2]
[377701281,1754499033252,-175.0,0.00023217,7]
[377701282,1754499033262,-621.0,0.00023348,2]
[377701283,1754499033272,-529.83688545,0.00023348,2]
[377701284,1754499033282,-417.0,0.00023348,2]